[Event "Early-Titled-Tuesday-Blitz-February-13-2024"]
[Site "Chess.com"]
[Date "2024.02.13"]
[Round "5"]
[White "Sl4werThanYou"]
[Black "K_A_S_T_O_R"]
[Result "0-1"]
[WhiteElo "2642"]
[BlackElo "2870"]
[TimeControl "180+1"]
[EndTime "9:00:11 PST"]
[Termination "K_A_S_T_O_R won by resignation"]

1. d4 {[%clk 0:03:00.9]} 1... Nf6 {[%clk 0:02:59.4]} 2. c4 {[%clk 0:03:00.4]}
2... e6 {[%clk 0:02:59.9]} 3. Nf3 {[%clk 0:02:55.2]} 3... c5 {[%clk 0:02:59.6]}
4. e3 {[%clk 0:02:54.2]} 4... a6 {[%clk 0:02:54.2]} 5. Nc3 {[%clk 0:02:53.3]}
5... d5 {[%clk 0:02:52.8]} 6. cxd5 {[%clk 0:02:30.7]} 6... exd5 {[%clk
0:02:52.7]} 7. g3 {[%clk 0:02:31.1]} 7... c4 {[%clk 0:02:19.4]} 8. Bg2 {[%clk
0:02:29.9]} 8... b5 {[%clk 0:02:19.5]} 9. O-O {[%clk 0:02:21.1]} 9... Bb7 {[%clk
0:02:19.3]} 10. Ne5 {[%clk 0:02:09]} 10... Bb4 {[%clk 0:02:18.8]} 11. a4 {[%clk
0:02:05.6]} 11... O-O {[%clk 0:02:11.7]} 12. axb5 {[%clk 0:02:03.4]} 12... Bxc3
{[%clk 0:02:11.8]} 13. bxc3 {[%clk 0:01:47.6]} 13... axb5 {[%clk 0:02:09.2]} 14.
Rxa8 {[%clk 0:01:26.4]} 14... Bxa8 {[%clk 0:02:08.7]} 15. Ba3 {[%clk 0:01:27.3]}
15... Re8 {[%clk 0:02:09]} 16. Qb1 {[%clk 0:01:21.1]} 16... Nc6 {[%clk
0:01:44.9]} 17. Qxb5 {[%clk 0:01:14.7]} 17... Nxe5 {[%clk 0:01:44.5]} 18. dxe5
{[%clk 0:01:15.6]} 18... Rxe5 {[%clk 0:01:44.9]} 19. Rd1 {[%clk 0:01:16.2]}
19... Re8 {[%clk 0:01:38.3]} 20. Bc5 {[%clk 0:01:11.6]} 20... Ne4 {[%clk
0:01:30.4]} 21. Bd4 {[%clk 0:00:57.9]} 21... h6 {[%clk 0:01:30.2]} 22. Ra1
{[%clk 0:00:57.1]} 22... Qc8 {[%clk 0:01:19.6]} 23. Ra7 {[%clk 0:00:48.7]} 23...
Bc6 {[%clk 0:01:18]} 24. Qb6 {[%clk 0:00:42.5]} 24... Qe6 {[%clk 0:01:10]} 25.
Rc7 {[%clk 0:00:39.7]} 25... Ra8 {[%clk 0:00:59.1]} 26. Ra7 {[%clk 0:00:21]}
26... Rxa7 {[%clk 0:00:56.4]} 27. Qxa7 {[%clk 0:00:21.9]} 27... Qf5 {[%clk
0:00:46.8]} 28. Qb8+ {[%clk 0:00:20.3]} 28... Kh7 {[%clk 0:00:47.2]} 29. Qf4
{[%clk 0:00:12.5]} 29... Qe6 {[%clk 0:00:47.5]} 30. h4 {[%clk 0:00:11.1]} 30...
f6 {[%clk 0:00:45.1]} 31. Bf3 {[%clk 0:00:06.3]} 31... Bd7 {[%clk 0:00:40.4]}
32. h5 {[%clk 0:00:05.8]} 32... Ng5 {[%clk 0:00:39.7]} 33. Bg2 {[%clk
0:00:04.2]} 33... Nh3+ {[%clk 0:00:37.3]} 34. Bxh3 {[%clk 0:00:04]} 34... Qxh3
{[%clk 0:00:37.9]} 35. Qf3 {[%clk 0:00:04.1]} 35... Be6 {[%clk 0:00:34.3]} 36.
e4 {[%clk 0:00:02.8]} 36... dxe4 {[%clk 0:00:27.4]} 37. Qxe4+ {[%clk 0:00:03.7]}
37... Bf5 {[%clk 0:00:28]} 38. Qf3 {[%clk 0:00:04.4]} 38... Bd3 {[%clk
0:00:26.6]} 39. Be3 {[%clk 0:00:01.8]} 39... f5 {[%clk 0:00:23.5]} 40. Qd1
{[%clk 0:00:02]} 40... Be4 {[%clk 0:00:22]} 41. f3 {[%clk 0:00:02.3]} 41...
Qxg3+ {[%clk 0:00:22.3]} 42. Kf1 {[%clk 0:00:02.4]} 42... Bd3+ {[%clk
0:00:22.5]} 43. Qxd3 {[%clk 0:00:02.4]} 43... cxd3 {[%clk 0:00:22]} 44. Bf2
{[%clk 0:00:03.3]} 44... Qxf3 {[%clk 0:00:22.3]} 45. Kg1 {[%clk 0:00:04.1]}
45... d2 {[%clk 0:00:22.3]} 0-1

[Event "Early-Titled-Tuesday-Blitz-February-13-2024"]
[Site "Chess.com"]
[Date "2024.02.13"]
[Round "5"]
[White "remyrushbrooke"]
[Black "Perecke"]
[Result "0-1"]
[WhiteElo "2267"]
[BlackElo "2546"]
[TimeControl "180+1"]
[EndTime "9:00:12 PST"]
[Termination "Perecke won on time"]

1. Nf3 {[%clk 0:03:00.9]} 1... d5 {[%clk 0:02:59.9]} 2. g3 {[%clk 0:03:00.4]}
2... c6 {[%clk 0:02:59]} 3. Bg2 {[%clk 0:02:59.5]} 3... Bg4 {[%clk 0:02:58.8]}
4. Ne5 {[%clk 0:02:59.3]} 4... Bf5 {[%clk 0:02:55.7]} 5. c4 {[%clk 0:02:58.9]}
5... Nd7 {[%clk 0:02:55.3]} 6. Nxd7 {[%clk 0:02:46]} 6... Qxd7 {[%clk
0:02:56.2]} 7. cxd5 {[%clk 0:02:34.1]} 7... cxd5 {[%clk 0:02:57.1]} 8. d3 {[%clk
0:02:28.9]} 8... e6 {[%clk 0:02:56.6]} 9. Nc3 {[%clk 0:02:28.4]} 9... Nf6 {[%clk
0:02:53.9]} 10. O-O {[%clk 0:02:28.6]} 10... h5 {[%clk 0:02:53]} 11. e4 {[%clk
0:02:18.2]} 11... Bg4 {[%clk 0:02:21.5]} 12. f3 {[%clk 0:02:12.6]} 12... h4
{[%clk 0:02:15.5]} 13. fxg4 {[%clk 0:02:09.3]} 13... hxg3 {[%clk 0:02:00.6]} 14.
h3 {[%clk 0:01:54.8]} 14... dxe4 {[%clk 0:01:55.7]} 15. g5 {[%clk 0:01:38.4]}
15... Bc5+ {[%clk 0:01:51.4]} 16. Kh1 {[%clk 0:01:37.9]} 16... e5 {[%clk
0:01:51.7]} 17. Qa4 {[%clk 0:01:34]} 17... b5 {[%clk 0:00:53]} 18. Qxb5 {[%clk
0:01:32.6]} 18... Qxb5 {[%clk 0:00:53.1]} 19. Nxb5 {[%clk 0:01:32.6]} 19... Ng4
{[%clk 0:00:54]} 20. d4 {[%clk 0:00:36.8]} 20... exd4 {[%clk 0:00:39.1]} 21.
Bxe4 {[%clk 0:00:20.4]} 21... Nf2+ {[%clk 0:00:34]} 22. Rxf2 {[%clk 0:00:20.4]}
22... gxf2 {[%clk 0:00:34.2]} 23. Kg2 {[%clk 0:00:20.8]} 23... O-O-O {[%clk
0:00:23.4]} 24. Bf4 {[%clk 0:00:16.2]} 24... a6 {[%clk 0:00:11.5]} 25. Rc1
{[%clk 0:00:13.4]} 25... axb5 {[%clk 0:00:11.7]} 26. Rxc5+ {[%clk 0:00:12.9]}
26... Kd7 {[%clk 0:00:12.6]} 27. Rc7+ {[%clk 0:00:09]} 27... Ke6 {[%clk
0:00:12.7]} 28. Rc6+ {[%clk 0:00:08.9]} 28... Ke7 {[%clk 0:00:11.7]} 29. Kxf2
{[%clk 0:00:03.5]} 29... Rxh3 {[%clk 0:00:10]} 30. Bf5 {[%clk 0:00:03.7]} 30...
Rh4 {[%clk 0:00:06.9]} 31. Rc7+ {[%clk 0:00:03.9]} 31... Kf8 {[%clk 0:00:06.7]}
32. Kg3 {[%clk 0:00:04.3]} 32... Rh1 {[%clk 0:00:06.4]} 33. Rc6 {[%clk
0:00:03.1]} 33... Rg1+ {[%clk 0:00:06.3]} 34. Kf2 {[%clk 0:00:03.2]} 34... Rd1
{[%clk 0:00:05.1]} 35. g6 {[%clk 0:00:03.3]} 35... fxg6 {[%clk 0:00:03.9]} 36.
Bxg6 {[%clk 0:00:03.3]} 36... d3 {[%clk 0:00:03.9]} 37. Rc5 {[%clk 0:00:01.9]}
37... d2 {[%clk 0:00:03.9]} 38. Rf5+ {[%clk 0:00:01.9]} 38... Ke7 {[%clk
0:00:04.3]} 39. Re5+ {[%clk 0:00:01.7]} 39... Kf6 {[%clk 0:00:04.4]} 0-1

[Event "Early-Titled-Tuesday-Blitz-February-13-2024"]
[Site "Chess.com"]
[Date "2024.02.13"]
[Round "5"]
[White "InitiatingASC"]
[Black "Kirill_Klukin"]
[Result "0-1"]
[WhiteElo "2410"]
[BlackElo "2806"]
[TimeControl "180+1"]
[EndTime "9:00:12 PST"]
[Termination "Kirill_Klukin won by checkmate"]

1. d4 {[%clk 0:02:28.2]} 1... Nf6 {[%clk 0:02:53.7]} 2. c4 {[%clk 0:02:26.4]}
2... Nc6 {[%clk 0:02:52.6]} 3. e3 {[%clk 0:02:22.5]} 3... d6 {[%clk 0:02:49]} 4.
Bd3 {[%clk 0:02:22.3]} 4... e5 {[%clk 0:02:48.8]} 5. Ne2 {[%clk 0:02:20.4]} 5...
g6 {[%clk 0:02:47.7]} 6. Nbc3 {[%clk 0:02:20.1]} 6... Bg7 {[%clk 0:02:48]} 7. d5
{[%clk 0:02:11.9]} 7... Ne7 {[%clk 0:02:47.6]} 8. e4 {[%clk 0:02:12.5]} 8... O-O
{[%clk 0:02:47.8]} 9. f3 {[%clk 0:02:13.1]} 9... a5 {[%clk 0:02:44.4]} 10. Be3
{[%clk 0:02:12.5]} 10... Nh5 {[%clk 0:02:43.9]} 11. Qd2 {[%clk 0:02:12.1]} 11...
f5 {[%clk 0:02:43.8]} 12. O-O-O {[%clk 0:02:10.3]} 12... Nf6 {[%clk 0:02:38.6]}
13. Kb1 {[%clk 0:02:09.4]} 13... a4 {[%clk 0:02:33]} 14. a3 {[%clk 0:02:06.3]}
14... Bd7 {[%clk 0:02:26.4]} 15. Nc1 {[%clk 0:02:06.2]} 15... fxe4 {[%clk
0:02:22.9]} 16. fxe4 {[%clk 0:02:02.6]} 16... Ng4 {[%clk 0:02:22.5]} 17. Bg1
{[%clk 0:01:38.7]} 17... Bh6 {[%clk 0:02:22.7]} 18. Qe2 {[%clk 0:01:38.3]} 18...
Nf6 {[%clk 0:02:23.2]} 19. h3 {[%clk 0:01:36.8]} 19... Nh5 {[%clk 0:02:23.3]}
20. Bh2 {[%clk 0:01:27.5]} 20... Nf4 {[%clk 0:02:15.2]} 21. Qc2 {[%clk
0:01:23.6]} 21... c5 {[%clk 0:02:05.7]} 22. Rdf1 {[%clk 0:01:11.5]} 22... Qa5
{[%clk 0:02:05.2]} 23. Rhg1 {[%clk 0:00:59.1]} 23... Rab8 {[%clk 0:02:02.8]} 24.
N1e2 {[%clk 0:00:49.5]} 24... Nxd3 {[%clk 0:02:01.9]} 25. Qxd3 {[%clk
0:00:49.2]} 25... b5 {[%clk 0:01:59.6]} 26. cxb5 {[%clk 0:00:44.1]} 26... Bxb5
{[%clk 0:01:59.9]} 27. Nxb5 {[%clk 0:00:44.1]} 27... Rxb5 {[%clk 0:02:00.8]} 28.
Rxf8+ {[%clk 0:00:34.3]} 28... Bxf8 {[%clk 0:02:01]} 29. Nc3 {[%clk 0:00:30.6]}
29... Rb8 {[%clk 0:01:54.5]} 30. Rf1 {[%clk 0:00:24.7]} 30... Nc8 {[%clk
0:01:53.3]} 31. Qf3 {[%clk 0:00:20.6]} 31... Nb6 {[%clk 0:00:17.6]} 32. Qf7+
{[%clk 0:00:17.6]} 32... Kh8 {[%clk 0:00:18.3]} 33. Qf6+ {[%clk 0:00:16.9]}
33... Kg8 {[%clk 0:00:18.8]} 34. Qf7+ {[%clk 0:00:14.2]} 34... Kh8 {[%clk
0:00:19.3]} 35. Qf6+ {[%clk 0:00:13.7]} 35... Bg7 {[%clk 0:00:13.1]} 36. Qxd6
{[%clk 0:00:13.5]} 36... Re8 {[%clk 0:00:13.8]} 37. Rf7 {[%clk 0:00:11.1]} 37...
Nc4 {[%clk 0:00:08.8]} 38. Qd7 {[%clk 0:00:08.6]} 38... Nxa3+ {[%clk 0:00:07.1]}
39. Ka2 {[%clk 0:00:06.7]} 39... Rb8 {[%clk 0:00:06]} 40. Rxg7 {[%clk
0:00:06.2]} 40... Rxb2+ {[%clk 0:00:06.7]} 41. Kxb2 {[%clk 0:00:05.6]} 41...
Qb4+ {[%clk 0:00:07]} 42. Ka2 {[%clk 0:00:03.5]} 42... Qb3+ {[%clk 0:00:06.7]}
43. Ka1 {[%clk 0:00:03.9]} 43... Nc2# {[%clk 0:00:07.4]} 0-1

[Event "Early-Titled-Tuesday-Blitz-February-13-2024"]
[Site "Chess.com"]
[Date "2024.02.13"]
[Round "5"]
[White "The_Straightforward_Rook"]
[Black "SkinnyPuppy8"]
[Result "1-0"]
[WhiteElo "2420"]
[BlackElo "2237"]
[TimeControl "180+1"]
[EndTime "9:00:15 PST"]
[Termination "The_Straightforward_Rook won by resignation"]

1. Nf3 {[%clk 0:03:00.5]} 1... d5 {[%clk 0:02:59.4]} 2. d4 {[%clk 0:02:57.6]}
2... c6 {[%clk 0:02:59.1]} 3. e3 {[%clk 0:02:55.5]} 3... Bf5 {[%clk 0:02:57.1]}
4. Bd3 {[%clk 0:02:54.8]} 4... Bg6 {[%clk 0:02:56.5]} 5. O-O {[%clk 0:02:52.9]}
5... Nd7 {[%clk 0:02:55.9]} 6. c4 {[%clk 0:02:52.4]} 6... e6 {[%clk 0:02:55.9]}
7. Bxg6 {[%clk 0:02:48.5]} 7... hxg6 {[%clk 0:02:55.8]} 8. Nbd2 {[%clk 0:02:45]}
8... f5 {[%clk 0:02:50.7]} 9. Qb3 {[%clk 0:02:33.3]} 9... Qb6 {[%clk 0:02:46.2]}
10. c5 {[%clk 0:02:32.1]} 10... Qc7 {[%clk 0:02:44.1]} 11. g3 {[%clk 0:02:26.4]}
11... e5 {[%clk 0:02:35.7]} 12. Nxe5 {[%clk 0:02:22.5]} 12... Nxe5 {[%clk
0:02:35.3]} 13. dxe5 {[%clk 0:02:23.4]} 13... Bxc5 {[%clk 0:02:28.6]} 14. Nf3
{[%clk 0:02:23.6]} 14... O-O-O {[%clk 0:02:21.4]} 15. Bd2 {[%clk 0:02:21.4]}
15... Re8 {[%clk 0:02:20.8]} 16. Rfc1 {[%clk 0:02:20]} 16... Bb6 {[%clk
0:02:14]} 17. a4 {[%clk 0:02:19.6]} 17... a6 {[%clk 0:02:05.4]} 18. Bc3 {[%clk
0:02:16.2]} 18... Nh6 {[%clk 0:02:00.8]} 19. Bd4 {[%clk 0:02:14.9]} 19... Ba5
{[%clk 0:01:38]} 20. Qc2 {[%clk 0:02:01.5]} 20... Nf7 {[%clk 0:01:20.2]} 21. b4
{[%clk 0:01:38]} 21... Bxb4 {[%clk 0:01:19.9]} 22. Rab1 {[%clk 0:01:38.6]} 22...
a5 {[%clk 0:01:19.8]} 23. h4 {[%clk 0:01:32.8]} 23... Nd8 {[%clk 0:01:03.9]} 24.
Ne1 {[%clk 0:01:29.1]} 24... Ne6 {[%clk 0:01:00.5]} 25. Nd3 {[%clk 0:01:29]}
25... g5 {[%clk 0:00:29.7]} 26. hxg5 {[%clk 0:01:11.3]} 26... Nxg5 {[%clk
0:00:24.6]} 27. Nxb4 {[%clk 0:01:10.2]} 27... Nf3+ {[%clk 0:00:18.2]} 28. Kg2
{[%clk 0:01:07.8]} 28... Nxe5 {[%clk 0:00:15.4]} 29. Qxf5+ {[%clk 0:01:06.6]}
29... Nd7 {[%clk 0:00:15.7]} 30. Nxd5 {[%clk 0:01:03.9]} 30... Qd6 {[%clk
0:00:13.6]} 31. Nb6+ {[%clk 0:01:03.2]} 31... Kd8 {[%clk 0:00:11.2]} 32. Qxd7+
{[%clk 0:01:02.1]} 32... Qxd7 {[%clk 0:00:11.5]} 33. Nxd7 {[%clk 0:01:03]} 33...
Kxd7 {[%clk 0:00:11.5]} 34. Rxb7+ {[%clk 0:01:03.7]} 34... Kd6 {[%clk
0:00:11.5]} 35. Rxg7 {[%clk 0:01:02.7]} 35... Rhf8 {[%clk 0:00:10.8]} 36. Rg6+
{[%clk 0:01:02.2]} 36... Kd5 {[%clk 0:00:09.7]} 37. Rc5+ {[%clk 0:00:57]} 37...
Ke4 {[%clk 0:00:09.9]} 38. Rcxc6 {[%clk 0:00:55.5]} 38... Kd3 {[%clk 0:00:08.5]}
39. Rcd6 {[%clk 0:00:53.8]} 39... Ke2 {[%clk 0:00:08.1]} 40. Rgf6 {[%clk
0:00:53.9]} 40... Rh8 {[%clk 0:00:07.2]} 41. Rb6 {[%clk 0:00:49]} 41... Rh5
{[%clk 0:00:06.6]} 42. Rb5 {[%clk 0:00:46.6]} 42... Rh7 {[%clk 0:00:04.6]} 43.
Rf4 {[%clk 0:00:43.3]} 43... Reh8 {[%clk 0:00:04.6]} 44. Bxh8 {[%clk 0:00:43]}
44... Rxh8 {[%clk 0:00:05.5]} 45. Rxa5 {[%clk 0:00:42.9]} 45... Kd3 {[%clk
0:00:05.7]} 46. Rd5+ {[%clk 0:00:42.5]} 46... Ke2 {[%clk 0:00:06.6]} 47. a5
{[%clk 0:00:40.6]} 47... Rb8 {[%clk 0:00:06.8]} 48. a6 {[%clk 0:00:39.9]} 48...
Rb1 {[%clk 0:00:07.7]} 49. Ra5 {[%clk 0:00:38.1]} 49... Rb8 {[%clk 0:00:07.8]}
50. a7 {[%clk 0:00:37.5]} 50... Ra8 {[%clk 0:00:08.5]} 51. Rb4 {[%clk
0:00:37.5]} 1-0

[Event "Early-Titled-Tuesday-Blitz-February-13-2024"]
[Site "Chess.com"]
[Date "2024.02.13"]
[Round "5"]
[White "PepeCuenca"]
[Black "FARIZA2018"]
[Result "0-1"]
[WhiteElo "2702"]
[BlackElo "2527"]
[TimeControl "180+1"]
[EndTime "9:00:16 PST"]
[Termination "FARIZA2018 won by checkmate"]

1. d4 {[%clk 0:03:00.9]} 1... Nf6 {[%clk 0:02:59.9]} 2. c4 {[%clk 0:03:01.2]}
2... e6 {[%clk 0:02:59.9]} 3. Nf3 {[%clk 0:03:01.3]} 3... d5 {[%clk 0:03:00.3]}
4. Nc3 {[%clk 0:03:01.5]} 4... Be7 {[%clk 0:03:00.3]} 5. Bf4 {[%clk 0:03:01.4]}
5... O-O {[%clk 0:02:59.9]} 6. e3 {[%clk 0:03:01.7]} 6... b6 {[%clk 0:02:59.8]}
7. Bd3 {[%clk 0:02:58]} 7... dxc4 {[%clk 0:02:59.6]} 8. Bxc4 {[%clk 0:02:58.3]}
8... Bb7 {[%clk 0:02:59.9]} 9. Qe2 {[%clk 0:02:48.6]} 9... c5 {[%clk 0:02:35.4]}
10. dxc5 {[%clk 0:02:47.6]} 10... Bxc5 {[%clk 0:02:33.7]} 11. O-O {[%clk
0:02:43.8]} 11... Nbd7 {[%clk 0:02:32.1]} 12. a3 {[%clk 0:02:39.2]} 12... Qe7
{[%clk 0:02:28.5]} 13. Rfd1 {[%clk 0:02:37.2]} 13... a5 {[%clk 0:02:09.9]} 14.
Nb5 {[%clk 0:02:25.8]} 14... Ne4 {[%clk 0:02:03.2]} 15. h3 {[%clk 0:02:12.6]}
15... Ndf6 {[%clk 0:01:43]} 16. Ne5 {[%clk 0:02:03.2]} 16... Rfd8 {[%clk
0:01:42.3]} 17. Nd3 {[%clk 0:01:52.6]} 17... Nd5 {[%clk 0:01:15.4]} 18. Bh2
{[%clk 0:01:32.2]} 18... Nxf2 {[%clk 0:00:21.9]} 19. Nxf2 {[%clk 0:01:23.3]}
19... Nxe3 {[%clk 0:00:21.9]} 20. Rxd8+ {[%clk 0:00:58.1]} 20... Rxd8 {[%clk
0:00:21.3]} 21. b4 {[%clk 0:00:58.2]} 21... Qg5 {[%clk 0:00:21.3]} 22. g3 {[%clk
0:00:34.7]} 22... Nxc4 {[%clk 0:00:19.9]} 23. bxc5 {[%clk 0:00:21]} 23... Qxc5
{[%clk 0:00:10]} 24. Nc3 {[%clk 0:00:12.2]} 24... Rd2 {[%clk 0:00:07.9]} 25. Qe1
{[%clk 0:00:06.4]} 25... Ne5 {[%clk 0:00:05.7]} 26. Kf1 {[%clk 0:00:03.4]} 26...
Nf3 {[%clk 0:00:05.1]} 27. Qxd2 {[%clk 0:00:01.9]} 27... Nxd2+ {[%clk
0:00:04.9]} 28. Ke2 {[%clk 0:00:02.8]} 28... Nf3 {[%clk 0:00:04.7]} 29. Rc1
{[%clk 0:00:02.3]} 29... Qc4+ {[%clk 0:00:04.8]} 30. Kd1 {[%clk 0:00:01.4]}
30... Qd4+ {[%clk 0:00:04.6]} 31. Ke2 {[%clk 0:00:01.5]} 31... Qd2+ {[%clk
0:00:04.9]} 32. Kf1 {[%clk 0:00:01.4]} 32... Qxc1+ {[%clk 0:00:05.5]} 33. Ke2
{[%clk 0:00:01.2]} 33... Qd2+ {[%clk 0:00:05.5]} 34. Kf1 {[%clk 0:00:01.1]}
34... Qe1+ {[%clk 0:00:05.9]} 35. Kg2 {[%clk 0:00:01.3]} 35... Nh4# {[%clk
0:00:05.8]} 0-1

[Event "Early-Titled-Tuesday-Blitz-February-13-2024"]
[Site "Chess.com"]
[Date "2024.02.13"]
[Round "5"]
[White "dropstoneDP"]
[Black "bazar-wokzal"]
[Result "1-0"]
[WhiteElo "3062"]
[BlackElo "2672"]
[TimeControl "180+1"]
[EndTime "9:00:18 PST"]
[Termination "dropstoneDP won on time"]

1. e4 {[%clk 0:03:00.9]} 1... Nc6 {[%clk 0:02:59]} 2. Nf3 {[%clk 0:02:56.5]}
2... d5 {[%clk 0:02:59.2]} 3. exd5 {[%clk 0:02:55.1]} 3... Qxd5 {[%clk
0:03:00.1]} 4. Nc3 {[%clk 0:02:54.6]} 4... Qa5 {[%clk 0:03:00.2]} 5. Bb5 {[%clk
0:02:54.7]} 5... Bd7 {[%clk 0:03:00.6]} 6. b4 {[%clk 0:02:49.9]} 6... Qxb4
{[%clk 0:02:58.7]} 7. Rb1 {[%clk 0:02:48.9]} 7... Qa5 {[%clk 0:02:58.8]} 8. O-O
{[%clk 0:02:45.6]} 8... Nf6 {[%clk 0:02:49.9]} 9. Re1 {[%clk 0:02:00.4]} 9... e6
{[%clk 0:02:49.2]} 10. Ne5 {[%clk 0:02:00.9]} 10... Bb4 {[%clk 0:02:33.9]} 11.
Nc4 {[%clk 0:01:59.2]} 11... Bxc3 {[%clk 0:02:28.9]} 12. Nxa5 {[%clk 0:01:57.3]}
12... Bxa5 {[%clk 0:02:29.1]} 13. Ba3 {[%clk 0:01:57.2]} 13... O-O-O {[%clk
0:02:25.1]} 14. c3 {[%clk 0:01:56.4]} 14... Bb6 {[%clk 0:02:20.1]} 15. d4 {[%clk
0:01:52.3]} 15... Na5 {[%clk 0:02:13.9]} 16. Bxd7+ {[%clk 0:01:49.5]} 16... Rxd7
{[%clk 0:02:13.3]} 17. Bb4 {[%clk 0:01:41.6]} 17... Nc6 {[%clk 0:02:02.9]} 18.
Qb3 {[%clk 0:01:33.5]} 18... Rhd8 {[%clk 0:01:57.1]} 19. Bc5 {[%clk 0:01:31.2]}
19... Na5 {[%clk 0:01:50.2]} 20. Qa4 {[%clk 0:01:28.8]} 20... Nd5 {[%clk
0:01:44.5]} 21. Rec1 {[%clk 0:01:26.6]} 21... Bxc5 {[%clk 0:01:38.1]} 22. dxc5
{[%clk 0:01:25]} 22... b6 {[%clk 0:01:37]} 23. g3 {[%clk 0:01:19]} 23... Nf6
{[%clk 0:01:28.8]} 24. Qb5 {[%clk 0:01:14.6]} 24... Rd5 {[%clk 0:01:22.5]} 25.
Qa6+ {[%clk 0:01:08.8]} 25... Kb8 {[%clk 0:01:19.7]} 26. Qxa5 {[%clk 0:00:41.6]}
26... Rd1+ {[%clk 0:01:18.5]} 27. Rxd1 {[%clk 0:00:42.1]} 27... Rxd1+ {[%clk
0:01:17.7]} 28. Rxd1 {[%clk 0:00:43]} 28... bxa5 {[%clk 0:01:17.7]} 29. Rd8+
{[%clk 0:00:43.6]} 29... Kb7 {[%clk 0:01:17.4]} 30. Rf8 {[%clk 0:00:44.5]} 30...
Ne4 {[%clk 0:01:09.5]} 31. Rxf7 {[%clk 0:00:42]} 31... Nxc3 {[%clk 0:01:09.7]}
32. a3 {[%clk 0:00:39.4]} 32... Nb5 {[%clk 0:00:58.9]} 33. Rxg7 {[%clk
0:00:39.1]} 33... Nxa3 {[%clk 0:00:58.6]} 34. Rxh7 {[%clk 0:00:39.7]} 34... Kc6
{[%clk 0:00:52.6]} 35. Kf1 {[%clk 0:00:17.4]} 35... a4 {[%clk 0:00:51.2]} 36.
Ke2 {[%clk 0:00:17.7]} 36... Nc4 {[%clk 0:00:40.2]} 37. Rh4 {[%clk 0:00:18]}
37... Kb5 {[%clk 0:00:28.7]} 38. Kd3 {[%clk 0:00:17.6]} 38... Ne5+ {[%clk
0:00:20.2]} 39. Kc3 {[%clk 0:00:16.9]} 39... a3 {[%clk 0:00:13.9]} 40. Kb3
{[%clk 0:00:15.9]} 40... Nf3 {[%clk 0:00:08.5]} 41. Rf4 {[%clk 0:00:12.7]} 41...
Nxh2 {[%clk 0:00:08]} 42. Kxa3 {[%clk 0:00:11.9]} 42... Kxc5 {[%clk 0:00:06.6]}
43. Rf7 {[%clk 0:00:09.5]} 1-0

[Event "Early-Titled-Tuesday-Blitz-February-13-2024"]
[Site "Chess.com"]
[Date "2024.02.13"]
[Round "5"]
[White "theoneandonlydaaevik"]
[Black "DucksParadise"]
[Result "1-0"]
[WhiteElo "2426"]
[BlackElo "2507"]
[TimeControl "180+1"]
[EndTime "9:00:18 PST"]
[Termination "theoneandonlydaaevik won by resignation"]

1. c4 {[%clk 0:03:00]} 1... e6 {[%clk 0:02:56.7]} 2. Nf3 {[%clk 0:02:57.8]} 2...
d5 {[%clk 0:02:55.2]} 3. g3 {[%clk 0:02:58.3]} 3... Nf6 {[%clk 0:02:54.3]} 4.
Bg2 {[%clk 0:02:58.7]} 4... Be7 {[%clk 0:02:55]} 5. O-O {[%clk 0:02:58.6]} 5...
O-O {[%clk 0:02:55.5]} 6. d4 {[%clk 0:02:59.5]} 6... c6 {[%clk 0:02:45.7]} 7.
Qc2 {[%clk 0:02:50.6]} 7... b6 {[%clk 0:02:44.2]} 8. b3 {[%clk 0:02:49.2]} 8...
Bb7 {[%clk 0:02:36.2]} 9. Nbd2 {[%clk 0:02:49.5]} 9... Na6 {[%clk 0:02:34.6]}
10. a3 {[%clk 0:02:27.3]} 10... c5 {[%clk 0:02:28.6]} 11. dxc5 {[%clk
0:02:22.3]} 11... Nxc5 {[%clk 0:02:25.4]} 12. b4 {[%clk 0:02:22.3]} 12... Nce4
{[%clk 0:02:24.9]} 13. Bb2 {[%clk 0:02:17.6]} 13... Rc8 {[%clk 0:02:22.5]} 14.
Qb3 {[%clk 0:02:10.3]} 14... Nxd2 {[%clk 0:02:16.6]} 15. Nxd2 {[%clk 0:02:10]}
15... dxc4 {[%clk 0:02:17.2]} 16. Qc3 {[%clk 0:01:54]} 16... Bxg2 {[%clk
0:02:15.6]} 17. Kxg2 {[%clk 0:01:54.9]} 17... b5 {[%clk 0:02:10.1]} 18. Rfd1
{[%clk 0:01:52.6]} 18... Qd5+ {[%clk 0:02:06.4]} 19. Nf3 {[%clk 0:01:52.1]}
19... Qe4 {[%clk 0:02:01]} 20. Rd7 {[%clk 0:01:48.9]} 20... Rfe8 {[%clk
0:01:47.9]} 21. Rad1 {[%clk 0:01:39.5]} 21... Bf8 {[%clk 0:01:42.3]} 22. Rxa7
{[%clk 0:01:20.8]} 22... Qxe2 {[%clk 0:01:26]} 23. Re1 {[%clk 0:00:55.7]} 23...
Qd3 {[%clk 0:01:24.3]} 24. Qxd3 {[%clk 0:00:40.1]} 24... cxd3 {[%clk 0:01:25.2]}
25. Rd1 {[%clk 0:00:40.3]} 25... Red8 {[%clk 0:01:18.7]} 26. Ne5 {[%clk
0:00:40.3]} 26... Rc2 {[%clk 0:01:15.2]} 27. Nxf7 {[%clk 0:00:20.6]} 27... Rd5
{[%clk 0:01:02.7]} 28. Nh6+ {[%clk 0:00:07.5]} 28... gxh6 {[%clk 0:01:01.5]} 29.
Bxf6 {[%clk 0:00:07.8]} 29... d2 {[%clk 0:00:57.3]} 30. Kf1 {[%clk 0:00:07.7]}
30... Ra2 {[%clk 0:00:33.1]} 31. Ke2 {[%clk 0:00:07.2]} 31... Bxb4 {[%clk
0:00:30.8]} 32. Ra8+ {[%clk 0:00:07.1]} 32... Kf7 {[%clk 0:00:30.8]} 33. Bh8
{[%clk 0:00:02.8]} 33... Bc3 {[%clk 0:00:26.8]} 34. Bxc3 {[%clk 0:00:02.1]}
34... Rc2 {[%clk 0:00:26.2]} 35. Bxd2 {[%clk 0:00:02.2]} 35... e5 {[%clk
0:00:26.3]} 36. f3 {[%clk 0:00:01.9]} 36... Rd7 {[%clk 0:00:23]} 37. Ra6 {[%clk
0:00:01.8]} 37... Kg7 {[%clk 0:00:20.2]} 38. Rb6 {[%clk 0:00:01.6]} 38... Rd5
{[%clk 0:00:19.9]} 39. Ke3 {[%clk 0:00:01.9]} 39... Ra2 {[%clk 0:00:19.2]} 40.
Ke2 {[%clk 0:00:01.4]} 40... Rxa3 {[%clk 0:00:18.1]} 41. Ke1 {[%clk 0:00:01.9]}
41... Rxf3 {[%clk 0:00:17.7]} 42. Bxh6+ {[%clk 0:00:02]} 42... Kf7 {[%clk
0:00:17.4]} 43. Rxd5 {[%clk 0:00:02.9]} 1-0